bitfinex/quotes_BTCUSD_20220226
["timestamp","ask_amount","ask_price","bid_price","bid_amount"]
[1645855552771,0.02556,39126.0,39117.0,0.20811244]
[1645855553169,0.00034938,39125.0,39117.0,0.20911244]
[1645855553370,0.00034938,39125.0,39117.0,0.25911244]
[1645855554216,0.00034938,39125.0,39124.0,0.18480962]
[1645855554423,0.00034939,39125.0,39124.0,0.18480962]
[1645855555316,0.00034939,39125.0,39119.0,0.001]
[1645855555317,0.002,39125.0,39119.0,0.001]
[1645855556418,0.063917,39129.0,39120.0,0.16884961]
[1645855556617,0.063917,39129.0,39120.0,0.26884961]
[1645855556918,0.0003494,39125.0,39120.0,0.26884961]
[1645855557316,0.0003494,39125.0,39121.0,0.0057384]
[1645855557769,0.063917,39129.0,39121.0,0.0057384]
[1645855557969,0.0003494,39125.0,39121.0,0.0057384]
[1645855558469,0.0003494,39125.0,39121.0,0.44765656]
[1645855558871,0.063917,39129.0,39121.0,0.44765656]
[1645855559271,0.0003494,39125.0,39121.0,0.45165656]
[1645855559471,0.0003494,39125.0,39122.0,1.3439]
[1645855559680,0.0003494,39125.0,39123.0,0.44191816]
[1645855559874,0.0003494,39125.0,39121.0,0.45165656]
[1645855560073,0.3,39130.0,39121.0,0.45165656]
[1645855560373,0.3,39130.0,39121.0,0.44765656]
[1645855560374,0.0003494,39126.0,39121.0,0.44765656]
[1645855561422,0.3,39130.0,39121.0,0.44765656]
[1645855561621,0.0003494,39125.0,39121.0,0.44765656]
[1645855561820,0.0003494,39125.0,39121.0,0.0057384]
[1645855562020,0.0003494,39125.0,39121.0,0.44765656]
[1645855562225,0.0003494,39125.0,39121.0,0.0057384]
[1645855563321,0.0003494,39125.0,39121.0,0.002]
[1645855563722,0.063917,39129.0,39121.0,0.002]
[1645855563921,0.50583516,39129.0,39121.0,0.002]
[1645855564128,0.0003494,39125.0,39121.0,0.002]
[1645855564323,0.431196,39124.0,39121.0,0.002]
[1645855564524,0.431196,39124.0,39121.0,0.5]
[1645855565263,0.433196,39124.0,39121.0,0.5]
[1645855565461,0.433196,39124.0,39119.0,0.0057384]
[1645855565462,0.379996,39122.0,39119.0,0.0057384]
[1645855565661,0.12556,39123.0,39119.0,0.0057384]
[1645855565860,0.063928,39122.0,39119.0,0.0057384]
[1645855566859,0.063928,39122.0,39113.0,0.0057384]
[1645855567061,0.53140616,39122.0,39113.0,0.0057384]
[1645855567659,0.063928,39122.0,39116.0,0.062523]
[1645855568261,0.0512,39123.0,39116.0,0.062523]
[1645855569213,0.20757759,39122.0,39116.0,0.063523]
[1645855569418,0.09509414,39122.0,39116.0,0.063523]
[1645855569817,0.56149024,39122.0,39116.0,0.063523]
[1645855570020,0.12065414,39122.0,39117.0,0.0057384]
[1645855570417,0.0512,39121.0,39117.0,0.0057384]
[1645855572965,0.0512,39121.0,39117.0,0.00054507]
[1645855573165,0.0552,39121.0,39117.0,0.00054507]
[1645855574466,0.0512,39121.0,39117.0,0.00054507]
[1645855575367,0.0552,39121.0,39117.0,0.00054507]
[1645855575970,0.08076,39121.0,39117.0,0.00054507]
[1645855576423,0.07676,39121.0,39117.0,0.00054507]
[1645855578925,0.14069,39121.0,39117.0,0.00054507]
[1645855579124,0.11513,39121.0,39117.0,0.00054507]
[1645855579324,0.11913,39121.0,39117.0,0.00054507]
[1645855579525,0.14469,39121.0,39117.0,0.00054507]
[1645855580571,0.14069,39121.0,39117.0,0.00054507]
[1645855582069,0.02556,39120.0,39116.0,0.03136456]
[1645855582269,0.11513,39121.0,39116.0,0.03136456]
[1645855584517,0.21358351,39124.0,39116.0,0.03136456]
[1645855584716,0.21393387,39125.0,39117.0,0.76687]
[1645855585319,0.21358351,39125.0,39117.0,0.76687]
[1645855585717,1.51310351,39126.0,39117.0,0.76687]
[1645855585916,0.00032701,39125.0,39117.0,0.76687]
[1645855586516,0.27750351,39126.0,39117.0,0.76687]
[1645855586718,0.27750351,39126.0,39117.0,0.98311717]
[1645855586919,0.00032701,39125.0,39117.0,0.98311717]
[1645855587420,0.21391052,39125.0,39117.0,0.98311717]
[1645855587667,0.00032701,39125.0,39117.0,0.98311717]
[1645855587867,0.27750351,39126.0,39117.0,0.76687]
[1645855588063,0.00032701,39125.0,39117.0,0.76687]
[1645855588762,0.00032701,39125.0,39118.0,0.43894822]
[1645855588962,0.27750351,39126.0,39118.0,0.43894822]
[1645855589362,0.00032701,39125.0,39118.0,0.43894822]
[1645855590164,0.27750351,39126.0,39118.0,0.43894822]
[1645855590467,0.00032858,39125.0,39118.0,0.43894822]
[1645855590663,0.21391209,39125.0,39117.0,0.76687]
[1645855590866,0.00032858,39125.0,39117.0,1.20581822]
[1645855591263,0.00032858,39125.0,39117.0,0.76787]
[1645855591516,0.27750351,39126.0,39117.0,0.76787]
[1645855591716,0.21391209,39125.0,39117.0,0.76787]
[1645855592417,0.00032858,39125.0,39117.0,0.76787]
[1645855592624,0.27750351,39126.0,39117.0,0.98288881]
[1645855592815,0.00032858,39125.0,39117.0,0.98150392]
[1645855593019,0.00032858,39125.0,39117.0,0.76548511]
[1645855593216,0.00032858,39125.0,39117.0,0.98250392]
[1645855593415,0.27691979,39126.0,39117.0,0.98250392]
[1645855593617,0.06333628,39126.0,39117.0,0.98250392]
[1645855594217,0.06333628,39126.0,39118.0,0.43894822]
[1645855596164,0.06333628,39126.0,39118.0,0.65496703]
[1645855596568,0.06333628,39126.0,39119.0,0.21601881]
[1645855597365,0.06333628,39126.0,39118.0,0.83876603]
[1645855598666,0.06333628,39126.0,39120.0,0.21601881]
[1645855598915,0.06333628,39126.0,39119.0,0.21601881]
[1645855601018,0.5825,39128.0,39119.0,0.21601881]
[1645855601218,0.5825,39128.0,39120.0,0.65496703]
[1645855601420,0.00032768,39127.0,39120.0,0.65496703]
[1645855601918,0.00032768,39127.0,39119.0,0.21601881]
[1645855602117,0.43632102,39129.0,39119.0,0.21601881]
[1645855602316,0.41076102,39129.0,39119.0,0.21601881]
[1645855602518,0.00032768,39127.0,39119.0,0.21601881]
[1645855602969,0.00032768,39127.0,39118.0,0.88876603]
[1645855603168,0.00032768,39127.0,39119.0,0.5]
[1645855603472,0.41076102,39129.0,39119.0,0.5]
[1645855603671,0.00032768,39127.0,39120.0,0.43894822]
[1645855603869,0.00032768,39127.0,39119.0,0.71601881]
[1645855604671,0.41076102,39129.0,39119.0,0.71601881]
[1645855604872,0.00032799,39127.0,39119.0,0.71601881]
[1645855605872,0.43632102,39129.0,39119.0,0.71601881]
[1645855606079,0.85086367,39123.0,39119.0,0.21601881]
[1645855606273,0.85086367,39123.0,39117.0,1.03583671]
[1645855606274,0.80546,39121.0,39117.0,1.03583671]
[1645855606563,0.80546,39121.0,39117.0,0.76581319]
[1645855606564,1.211096,39120.0,39117.0,0.76581319]
[1645855606762,1.43295171,39120.0,39117.0,0.76581319]
[1645855606962,1.54316171,39120.0,39117.0,0.76581319]
[1645855607162,1.54316171,39120.0,39117.0,0.76548511]
[1645855607362,1.54516171,39120.0,39117.0,0.76548511]
[1645855607563,1.74853522,39120.0,39117.0,0.76548511]
[1645855608363,1.74853522,39120.0,39117.0,0.76581315]
[1645855608564,1.74653522,39120.0,39117.0,0.76581315]
[1645855608868,1.159896,39118.0,39117.0,0.76581315]
[1645855609064,1.211096,39118.0,39117.0,0.76581315]
[1645855609465,1.211096,39118.0,39117.0,0.76548511]
[1645855610869,1.65004422,39118.0,39117.0,0.76548511]
[1645855611073,1.211096,39118.0,39117.0,0.76548511]
[1645855611671,0.431196,39118.0,39117.0,0.76548511]
[1645855612069,0.431196,39118.0,39117.0,0.21742999]
[1645855613471,0.433196,39118.0,39117.0,0.21742999]
[1645855613671,0.0532,39118.0,39117.0,0.21742999]
[1645855613915,0.433196,39118.0,39117.0,0.21742999]
[1645855614122,0.433196,39118.0,39117.0,0.21242999]
[1645855614616,0.431196,39118.0,39117.0,0.21242999]
[1645855615016,0.0512,39118.0,39117.0,0.21242999]
[1645855615417,0.431196,39118.0,39117.0,0.21242999]
[1645855616019,1.211096,39118.0,39117.0,0.21242999]
[1645855616219,0.431196,39118.0,39117.0,0.21242999]
[1645855617421,0.0532,39118.0,39117.0,0.21242999]
[1645855617672,0.433196,39118.0,39117.0,0.21242999]
[1645855618772,0.431196,39118.0,39117.0,0.21242999]
[1645855621518,0.0512,39118.0,39117.0,0.21242999]
[1645855621919,0.0512,39118.0,39117.0,0.21226999]
[1645855623320,0.0512,39118.0,39117.0,0.21084999]
[1645855626476,0.379996,39118.0,39117.0,0.21084999]
[1645855626779,0.063934,39119.0,39117.0,0.20989999]
[1645855627374,0.065934,39119.0,39117.0,0.20989999]
[1645855630725,0.063934,39119.0,39117.0,0.20989999]
[1645855632125,0.063934,39119.0,39117.0,0.20944489]
[1645855635377,0.379996,39118.0,39117.0,0.20944489]
[1645855635578,0.067934,39119.0,39117.0,0.20944489]
[1645855636933,0.063934,39119.0,39117.0,0.20944489]
[1645855638137,0.06342169,39119.0,39117.0,0.20944489]
[1645855639438,0.127869,39122.0,39117.0,0.20944489]
[1645855639638,0.05823567,39123.0,39117.0,0.20944489]
[1645855641067,0.05823567,39123.0,39117.0,0.20977267]
[1645855641469,0.05823567,39123.0,39117.0,0.40104585]
[1645855642070,0.50351506,39124.0,39117.0,0.40071807]
[1645855642372,0.015,39124.0,39117.0,0.40104585]
[1645855643168,0.015,39124.0,39117.0,0.40071807]
[1645855643371,0.018,39124.0,39117.0,0.40104582]
[1645855643569,0.018,39124.0,39117.0,0.73813708]
[1645855643769,0.018,39124.0,39117.0,0.61706463]
[1645855644025,0.018,39124.0,39118.0,0.21601881]
[1645855645221,0.015,39124.0,39118.0,0.21601881]
[1645855645417,0.016,39124.0,39118.0,0.21601881]
[1645855645619,0.016,39124.0,39123.0,0.2264065]
[1645855646617,0.015,39124.0,39123.0,0.2264065]
[1645855647523,0.015,39124.0,39123.0,0.2274065]
[1645855648774,0.015,39124.0,39123.0,0.2264065]
[1645855649374,0.015,39124.0,39123.0,0.2274065]
[1645855650675,0.015,39124.0,39123.0,0.2264065]
[1645855651524,0.015,39124.0,39123.0,0.2274065]
[1645855652624,0.015,39124.0,39123.0,0.2264065]
[1645855653425,0.016,39124.0,39123.0,0.2264065]
[1645855654126,0.016,39124.0,39119.0,0.65733359]
[1645855654728,0.015,39124.0,39118.0,0.21601881]
[1645855654930,0.015,39124.0,39117.0,0.45155307]
[1645855655173,0.0512,39123.0,39117.0,0.45155307]
[1645855655375,0.0512,39123.0,39117.0,0.45355307]
[1645855655575,0.0512,39123.0,39117.0,0.21144489]
[1645855655774,0.0512,39123.0,39117.0,0.21175306]
[1645855656174,0.0512,39123.0,39117.0,0.65306784]
[1645855656773,0.0512,39123.0,39117.0,0.65075967]
[1645855657071,0.0512,39123.0,39117.0,0.65106786]
[1645855657272,0.0512,39123.0,39117.0,0.86708667]
[1645855657473,0.0522,39123.0,39117.0,0.86708667]
[1645855657878,0.0522,39123.0,39117.0,0.86677848]
[1645855658074,0.0522,39123.0,39117.0,0.8670867]
[1645855658674,0.0512,39123.0,39117.0,0.8670867]
[1645855659128,0.0512,39123.0,39117.0,0.86677848]
[1645855659327,0.0512,39123.0,39117.0,0.8670867]
[1645855659527,0.0522,39123.0,39117.0,0.8670867]
[1645855659930,0.0472,39123.0,39117.0,0.8670867]
[1645855660331,0.0472,39123.0,39117.0,0.86677848]
[1645855660634,0.0462,39123.0,39117.0,0.86708671]
[1645855661432,0.0462,39123.0,39117.0,0.86777848]
[1645855661633,0.0462,39123.0,39117.0,0.6520679]
[1645855662233,0.0462,39123.0,39117.0,0.86808671]
[1645855662673,0.0462,39123.0,39117.0,0.65075967]
[1645855662873,0.0462,39123.0,39118.0,0.21601881]
[1645855663073,0.0462,39123.0,39117.0,0.6510679]
[1645855663074,0.0462,39123.0,39117.0,0.20975312]
[1645855663278,0.0462,39123.0,39117.0,0.42577193]
[1645855663473,0.0462,39123.0,39118.0,0.001]
[1645855664874,0.0462,39123.0,39117.0,0.20975312]
[1645855665074,0.0462,39123.0,39117.0,0.20944489]
[1645855665274,0.0462,39123.0,39117.0,0.20975312]
[1645855665476,0.0462,39123.0,39117.0,0.21075312]
[1645855666627,0.0462,39123.0,39117.0,0.20975312]
[1645855667424,0.0462,39123.0,39117.0,0.21044489]
[1645855667624,0.0462,39123.0,39117.0,0.6520679]
[1645855667826,0.0462,39123.0,39122.0,0.22762748]
[1645855669424,0.0502,39123.0,39122.0,0.22762748]
[1645855669627,0.004,39123.0,39122.0,0.22762748]
[1645855670780,0.015,39124.0,39122.0,0.22762748]
[1645855671481,0.019,39124.0,39122.0,0.22762748]
[1645855672083,0.019,39124.0,39122.0,0.07398851]
[1645855672682,0.015,39124.0,39122.0,0.07398851]
[1645855673284,0.01,39124.0,39122.0,0.07398851]
[1645855673487,0.014,39124.0,39122.0,0.07398851]
[1645855674740,0.01,39124.0,39122.0,0.07398851]
[1645855680378,0.01,39124.0,39111.0,0.20951124]
[1645855680575,0.01,39124.0,39054.0,0.2254]
[1645855680576,0.01,39124.0,39039.0,0.03775]
[1645855680777,0.01,39124.0,38579.0,0.247]
[1645855680778,0.01,39124.0,38924.0,0.0417229]
[1645855680981,1.45,39122.0,39087.0,0.26465307]
[1645855681190,1.0,39122.0,39090.0,0.1999]
[1645855681428,1.00012,39122.0,39098.0,0.02556]
[1645855681626,0.22709376,39111.0,39099.0,1.03160279]
[1645855681829,0.21787576,39111.0,39101.0,0.05]
[1645855682026,0.21799576,39111.0,39102.0,0.76722]
[1645855682225,0.21799576,39111.0,39103.0,0.5591331]
[1645855682426,0.21799576,39111.0,39104.0,0.76718]
[1645855682626,0.56034058,39110.0,39104.0,0.76718]
[1645855682827,0.01,39109.0,39104.0,0.72718]
[1645855683026,0.0512,39108.0,39104.0,0.71718]
[1645855683228,0.61166058,39108.0,39104.0,0.63718]
[1645855683427,0.05132,39108.0,39104.0,0.63718]
[1645855683625,0.61166058,39108.0,39104.0,0.63718]
[1645855684025,0.65658058,39108.0,39104.0,0.63718]
[1645855684226,0.65676145,39108.0,39104.0,0.63718]
[1645855684426,0.09642087,39108.0,39104.0,0.63718]
[1645855684826,0.2077336,39105.0,39104.0,0.63718]
[1645855685026,0.05132,39105.0,39104.0,0.63718]
[1645855685478,0.05232,39105.0,39104.0,0.63718]
[1645855686082,0.28433784,39105.0,39104.0,0.63718]
[1645855686680,0.28333784,39105.0,39104.0,0.63718]
[1645855686879,0.09139,39105.0,39104.0,0.63718]
[1645855687081,0.09624,39105.0,39104.0,0.63718]
[1645855687481,0.09624,39105.0,39104.0,0.64018]
[1645855687681,0.08834608,39105.0,39104.0,0.64018]
[1645855687982,0.29083463,39105.0,39104.0,0.64018]
[1645855688382,0.81831543,39105.0,39104.0,0.64018]
[1645855688927,0.81831543,39105.0,39104.0,0.63718]
[1645855689325,0.81831543,39105.0,39104.0,0.6367264]
[1645855689528,0.81831543,39105.0,39104.0,0.6397264]
[1645855690826,0.81831543,39105.0,39104.0,0.6367264]
[1645855691631,0.81931543,39105.0,39104.0,0.6367264]
[1645855692775,0.81831543,39105.0,39104.0,0.6367264]
[1645855693577,0.81831543,39105.0,39104.0,0.6397264]
[1645855694781,0.81831543,39105.0,39104.0,0.6367264]
[1645855696832,0.71020932,39105.0,39104.0,0.6367264]
[1645855697628,0.71020932,39105.0,39104.0,0.6397264]
[1645855698232,0.71020932,39105.0,39104.0,0.6247264]
[1645855699629,0.71020932,39105.0,39104.0,0.6277264]
[1645855699829,0.71020932,39105.0,39104.0,0.6247264]
[1645855701174,0.71020932,39105.0,39104.0,0.6217264]
[1645855703573,0.71020932,39105.0,39104.0,0.6247264]
[1645855704826,0.71020932,39105.0,39104.0,0.6217264]
[1645855705625,0.71020932,39105.0,39104.0,0.6257264]
[1645855706227,0.70996883,39105.0,39104.0,0.6257264]
[1645855706626,0.70496883,39105.0,39104.0,0.6257264]
[1645855706827,0.70496883,39105.0,39104.0,0.6217264]
[1645855707670,0.70496883,39105.0,39104.0,0.6257264]
[1645855708971,0.70496883,39105.0,39104.0,0.6217264]
[1645855709673,0.70496883,39105.0,39104.0,0.6237264]
[1645855710578,0.70496883,39105.0,39104.0,0.04722632]
[1645855710975,0.70496883,39105.0,39104.0,0.04522632]
[1645855711437,0.80496883,39105.0,39104.0,0.04522632]
[1645855711631,0.70596883,39105.0,39104.0,0.04522632]
[1645855712830,0.70496883,39105.0,39104.0,0.04522632]
[1645855713632,0.70496883,39105.0,39104.0,0.04622632]
[1645855715777,0.6249288,39105.0,39104.0,0.04622632]
[1645855716777,0.6249288,39105.0,39104.0,0.04522632]
[1645855717681,0.6249288,39105.0,39104.0,0.04622632]
[1645855718933,0.6249288,39105.0,39104.0,0.04522632]
[1645855719631,0.6249288,39105.0,39104.0,0.04622632]
[1645855720431,0.29083463,39105.0,39104.0,0.04622632]
[1645855720832,0.29083463,39105.0,39104.0,0.04522632]
[1645855721631,0.29083463,39105.0,39104.0,0.04722632]
[1645855722978,0.29083463,39105.0,39104.0,0.04522632]
[1645855722979,0.24740855,39105.0,39104.0,0.04522632]
[1645855723676,0.24740855,39105.0,39104.0,0.04722632]
[1645855724875,0.24740855,39105.0,39104.0,0.04522632]
[1645855725676,0.24740855,39105.0,39104.0,0.04722632]
[1645855726824,0.24740855,39105.0,39104.0,0.04522632]
[1645855727627,0.24740855,39105.0,39104.0,0.04722632]
[1645855728828,0.24740855,39105.0,39104.0,0.04522632]
[1645855729327,0.24740855,39105.0,39103.0,0.34309422]
[1645855729627,0.24740855,39105.0,39104.0,0.003]
[1645855730876,0.24740855,39105.0,39098.0,0.05]
[1645855731074,0.24740855,39105.0,39099.0,0.79424416]
[1645855731274,0.24740855,39105.0,39100.0,0.02701416]
[1645855731475,0.24740855,39105.0,39101.0,0.76724]
[1645855731774,0.00032901,39104.0,39102.0,0.02701416]
[1645855731974,0.04115901,39104.0,39102.0,0.02701416]
[1645855732174,0.04524901,39104.0,39102.0,0.02701416]
[1645855732876,0.04492,39104.0,39102.0,0.02701416]
[1645855735734,0.04492,39104.0,39102.0,0.02901416]
[1645855735933,0.04492,39104.0,39102.0,0.002]
[1645855736333,0.04492,39104.0,39102.0,0.3801972]
[1645855736933,0.04492,39104.0,39102.0,0.3781972]
[1645855737337,0.04492,39104.0,39103.0,0.3781972]
[1645855738879,0.21088127,39105.0,39103.0,0.3781972]
[1645855739077,0.21118749,39105.0,39103.0,0.3781972]
[1645855739477,0.00030622,39105.0,39104.0,0.54812228]
[1645855739879,0.00030622,39105.0,39104.0,0.76718]
[1645855740277,0.01,39109.0,39104.0,0.76718]
[1645855740478,0.01,39109.0,39108.0,0.37814489]
[1645855740678,0.01,39109.0,39108.0,1.14525489]
[1645855740986,0.01,39109.0,39108.0,0.86711]
[1645855741638,0.01,39109.0,39108.0,0.87011]
[1645855743039,0.01,39109.0,39108.0,0.86711]
[1645855743838,0.01,39109.0,39108.0,0.87011]
[1645855744439,0.01,39109.0,39108.0,1.24811127]
[1645855745040,0.01,39109.0,39108.0,1.41523228]
[1645855745278,0.01,39109.0,39108.0,0.86711]
[1645855745476,0.01,39109.0,39108.0,1.24511123]
[1645855747077,0.01,39109.0,39108.0,1.79323351]
[1645855747478,0.01,39109.0,39108.0,1.24511123]
[1645855747876,0.01,39109.0,39108.0,1.24911123]
[1645855749328,0.01,39109.0,39108.0,0.87111]
[1645855751231,0.01,39109.0,39108.0,0.86711]
[1645855751432,0.01,39109.0,39108.0,0.83907924]
[1645855751736,0.00726773,39109.0,39108.0,0.87011]
[1645855752234,0.00726773,39109.0,39108.0,0.77011]
[1645855752433,0.00726773,39109.0,39108.0,0.87011]
[1645855752875,0.00726773,39109.0,39108.0,0.77011]
[1645855753071,0.00726773,39109.0,39108.0,0.76711]
[1645855753672,0.00726773,39109.0,39108.0,0.76911]
[1645855754072,0.00726773,39109.0,39108.0,0.81911]
[1645855754275,0.00726773,39109.0,39108.0,0.86911]
[1645855754673,0.00726773,39109.0,39108.0,0.76911]
[1645855755073,0.00726773,39109.0,39108.0,0.76711]
[1645855755272,0.00726773,39109.0,39108.0,0.38350406]
[1645855755873,0.00726773,39109.0,39103.0,0.38000123]
[1645855755874,0.4,39108.0,39103.0,0.38000123]
[1645855756072,0.22890449,39105.0,39103.0,0.38000123]
[1645855756530,0.29283886,39105.0,39104.0,0.76718]
[1645855757732,0.29283886,39105.0,39104.0,0.77018]
[1645855759137,0.02050749,39106.0,39104.0,0.76718]
[1645855759936,0.07170749,39106.0,39104.0,0.76718]
[1645855760386,0.1,39105.0,39104.0,0.76718]
[1645855760589,0.1512,39105.0,39104.0,0.76718]
[1645855760787,0.21513437,39105.0,39104.0,0.76718]
[1645855762891,0.21513437,39105.0,39104.0,0.71718]
[1645855763928,0.21513437,39105.0,39104.0,0.71818]
[1645855764128,0.11513437,39105.0,39104.0,0.71818]
[1645855764327,0.11642204,39105.0,39104.0,0.71818]
[1645855764928,0.11142204,39105.0,39104.0,0.71818]
[1645855765531,0.10642204,39105.0,39104.0,0.71818]
[1645855767534,0.00726773,39109.0,39104.0,0.71718]
[1645855767779,0.0512,39108.0,39104.0,0.71918]
[1645855768183,0.05668666,39108.0,39104.0,0.71918]
[1645855768786,0.12786874,39106.0,39104.0,0.71918]
[1645855768984,0.18610507,39106.0,39104.0,0.71718]
[1645855769183,0.00698894,39105.0,39104.0,0.71718]
[1645855769382,0.05818894,39105.0,39104.0,0.71718]
[1645855770187,0.04818894,39105.0,39104.0,0.71718]
[1645855771834,0.04918894,39105.0,39104.0,0.71718]
[1645855772035,0.59184578,39105.0,39104.0,0.71718]
[1645855772235,1.15,39104.0,39099.0,0.001]
[1645855772436,0.0512,39103.0,39099.0,0.001]
[1645855773136,0.0512,39103.0,39094.0,0.05]
[1645855773336,0.18704737,39102.0,39098.0,0.32398332]
[1645855773535,0.0512,39101.0,39098.0,0.32398332]
[1645855773734,0.0512,39101.0,39095.0,0.37798054]
[1645855773935,0.11514986,39101.0,39096.0,0.7673]
[1645855774136,0.11514986,39101.0,39096.0,1.14528054]
[1645855774337,0.11514986,39101.0,39096.0,0.7673]
[1645855774736,0.11502843,39101.0,39096.0,0.7673]
[1645855775181,0.11502843,39101.0,39096.0,1.14528054]
[1645855775384,0.11502843,39101.0,39100.0,0.26996007]
[1645855775781,0.11502843,39101.0,39100.0,0.26496007]
[1645855776381,0.11502843,39101.0,39096.0,1.14728054]
[1645855776980,0.11502843,39101.0,39096.0,1.14528054]
[1645855777781,0.11502843,39101.0,39096.0,1.14728054]
[1645855779025,0.11502843,39101.0,39096.0,1.14528054]
[1645855780026,0.11502843,39101.0,39096.0,1.14728054]
[1645855780227,0.11502843,39101.0,39098.0,0.37798054]
[1645855781429,0.06393437,39105.0,39098.0,0.37798054]
[1645855781629,0.06393437,39105.0,39099.0,0.9936121]
[1645855781929,0.23457349,39109.0,39103.0,0.40354054]
[1645855781930,0.00757349,39109.0,39103.0,0.40354054]
[1645855782128,0.00757349,39109.0,39106.0,0.32386053]
[1645855782428,0.00757349,39109.0,39108.0,0.32386053]
[1645855782883,0.00757349,39109.0,39108.0,1.14093261]
[1645855783488,0.00757352,39109.0,39108.0,1.14093261]
[1645855783888,0.00726773,39109.0,39108.0,1.14293261]
[1645855784085,0.00726773,39109.0,39108.0,1.68495535]
[1645855785186,0.00726773,39109.0,39108.0,1.68295535]
[1645855785387,0.00726773,39109.0,39108.0,1.35913274]
[1645855785993,0.00726773,39109.0,39108.0,1.87498974]
[1645855786287,0.00339131,39109.0,39108.0,1.49719669]
[1645855786730,0.00339131,39109.0,39108.0,1.52275669]
[1645855788030,0.00339131,39109.0,39108.0,1.52575669]
[1645855788331,0.00339131,39109.0,39108.0,1.87791167]
[1645855788931,0.00339131,39109.0,39108.0,1.33588893]
[1645855789132,0.00339131,39109.0,39108.0,1.33288893]
[1645855789732,0.00339131,39109.0,39108.0,1.87491167]
[1645855791583,0.00339131,39109.0,39108.0,1.90047167]
[1645855791784,0.00339131,39109.0,39108.0,1.90447167]
[1645855792283,0.00339131,39109.0,39108.0,1.52675669]
[1645855792483,0.00339131,39109.0,39108.0,0.95917395]
[1645855792684,0.00339131,39109.0,39108.0,1.3368347]
[1645855792884,0.00339131,39109.0,39108.0,1.3623947]
[1645855793087,0.00339131,39109.0,39108.0,0.98073395]
[1645855793486,0.70290095,39111.0,39109.0,0.8]
[1645855793693,0.0371028,39113.0,39110.0,0.32371201]
[1645855793936,0.0371028,39113.0,39111.0,1.09076201]
[1645855794336,0.0371028,39113.0,39111.0,1.19076201]
[1645855794537,0.0371028,39113.0,39111.0,0.86705]
[1645855794737,0.0371028,39113.0,39111.0,1.19076201]
[1645855794937,0.0371028,39113.0,39111.0,0.86705]
[1645855795137,0.0371028,39113.0,39112.0,0.26973805]
[1645855795339,0.0371028,39113.0,39112.0,1.03676805]
[1645855797341,0.0371028,39113.0,39112.0,0.76703]
[1645855797783,0.0371028,39113.0,39112.0,0.77003]
[1645855799180,0.0371028,39113.0,39112.0,0.76703]
[1645855799984,0.0371028,39113.0,39112.0,0.77003]
[1645855800183,0.0371028,39113.0,39112.0,1.09374201]
[1645855800385,0.0371028,39113.0,39112.0,1.19374201]
[1645855800586,0.00033897,39114.0,39113.0,1.15]
[1645855800786,2.257,39118.0,39113.0,1.15]
[1645855800787,2.257,39118.0,39113.0,1.77999007]
[1645855800985,2.257,39118.0,39114.0,0.32362042]
[1645855801188,2.257,39118.0,39116.0,0.32362042]
[1645855801443,2.257,39118.0,39117.0,0.76693]
[1645855803138,2.242,39118.0,39117.0,0.76693]
[1645855803741,1.8082,39118.0,39117.0,0.76693]
[1645855805295,1.8082,39118.0,39117.0,0.96673]
[1645855805494,1.8082,39118.0,39117.0,0.76693]
[1645855807497,1.8082,39118.0,39117.0,1.30172146]
[1645855807897,1.72815997,39118.0,39117.0,1.30472146]
[1645855808497,1.72815997,39118.0,39117.0,0.76993]
[1645855808935,1.545,39118.0,39117.0,0.76993]
[1645855809135,1.530045,39118.0,39117.0,1.30172146]
[1645855809334,1.530045,39118.0,39117.0,0.76693]
[1645855809935,1.530045,39118.0,39117.0,0.76993]
[1645855810836,1.530045,39118.0,39117.0,1.30472146]
[1645855811036,1.530045,39118.0,39117.0,0.76693]
[1645855811236,1.530045,39118.0,39117.0,1.30172146]
[1645855811442,0.69174105,39118.0,39117.0,1.30172146]
[1645855811640,0.69174105,39118.0,39117.0,1.35292146]
[1645855811839,0.69174105,39118.0,39117.0,1.35692146]
[1645855813079,0.69174105,39118.0,39117.0,1.35292146]
[1645855813680,0.400021,39118.0,39117.0,1.35292146]
[1645855813880,0.400021,39118.0,39117.0,1.35692146]
[1645855815183,0.0003212,39119.0,39117.0,1.70210188]
[1645855815387,0.0003212,39119.0,39118.0,0.56091556]
[1645855815582,1.0066,39124.0,39118.0,0.66091556]
[1645855815783,1.0066,39124.0,39120.0,0.063886]
[1645855815983,1.0066,39124.0,39121.0,0.53535556]
[1645855816183,1.0066,39124.0,39121.0,0.63535556]
[1645855816433,1.0066,39124.0,39122.0,0.76683]
[1645855816634,1.0066,39124.0,39122.0,0.81683]
[1645855818035,1.0066,39124.0,39122.0,0.81983]
[1645855819235,1.0066,39124.0,39122.0,0.81683]
[1645855822288,0.05030852,39125.0,39122.0,0.81683]
[1645855822493,0.05030852,39125.0,39122.0,0.76683]
[1645855822887,0.05,39125.0,39122.0,0.76683]
[1645855823489,0.04939802,39125.0,39122.0,0.76683]
[1645855823940,0.04939802,39125.0,39122.0,0.76983]
[1645855824136,0.0490895,39125.0,39122.0,0.76983]
[1645855824338,0.0490895,39125.0,39122.0,0.76883]
[1645855824536,0.04939773,39125.0,39122.0,0.76883]
[1645855825141,0.04939773,39125.0,39122.0,0.76583]
[1645855825538,0.0490895,39125.0,39122.0,0.76583]
[1645855825741,0.04939773,39125.0,39122.0,0.76583]
[1645855826537,0.0490895,39125.0,39122.0,0.76583]
[1645855826939,0.04939773,39125.0,39122.0,0.76583]
[1645855827808,0.0490895,39125.0,39122.0,0.76583]
[1645855828004,0.04939773,39125.0,39122.0,0.76583]
[1645855829005,0.0490895,39125.0,39122.0,0.76583]
[1645855829205,0.04939777,39125.0,39122.0,0.76583]
[1645855830007,0.04939777,39125.0,39122.0,0.76783]
[1645855830208,0.0490895,39125.0,39122.0,0.76783]
[1645855830607,0.04939777,39125.0,39122.0,0.76783]
[1645855831210,0.04939777,39125.0,39122.0,0.76583]
[1645855831436,0.0490895,39125.0,39122.0,0.76583]
[1645855831635,0.04924552,39125.0,39122.0,0.76583]
[1645855832036,0.04924552,39125.0,39122.0,0.76783]
[1645855832638,0.14891779,39126.0,39122.0,0.76783]
[1645855832838,0.00030833,39125.0,39122.0,0.76783]
[1645855833238,0.00030833,39125.0,39122.0,0.76583]
[1645855833440,0.00030833,39125.0,39122.0,0.81583]
[1645855833640,0.00016372,39125.0,39122.0,1.13945042]
[1645855833843,0.0006,39127.0,39122.0,1.18945042]